{"text_format":"1","workbook":"xlsx","n_sheets":2,"sheets":["Partenza sistema","Unità misura e prezzi"],"not_rendered":{"charts":0,"images":1,"macros":1,"external_links":0,"defined_names":49,"comments":0,"pivot_tables":0},"unopened":[],"bounds":{"document_bytes":16777216,"sheet_cells":100000,"rows_first":2000,"rows_last":500,"rows_between":2000,"halvings":0,"cell_chars":16384,"cell_head_chars":4096},"cells_cut":0,"cells_raw":0,"read":"whole","date_system":"1900"}

{"sheet":"Partenza sistema","index":0,"n_rows":30,"n_cols":18,"rows_kept":30,"cut":false,"hidden":false,"merged":[[12,11,12,13],[13,11,13,13],[25,0,25,6],[18,0,18,2],[15,0,15,2],[14,11,14,13],[0,1,2,6],[28,0,28,6],[29,0,29,6],[26,3,26,5],[26,1,26,2],[13,0,13,2],[12,0,12,2],[14,0,14,2],[11,0,11,2],[4,0,9,6]]}
[null,"Applicazione di rete angolare per finestre"]
[]
[]
[]
["Fornitura e posa in opera di rete preformata in fibra di vetro alcali resistente da inserire in corrispondenza degli angoli di porte, finestre e aperture per il rinforzo aggiuntivo alla rete d'armatura - tipo Rete Angolare per Finestre di Kerakoll.\nIl prezzo è per singolo angolare effettivamente posta in opera. E' altresì compresa la fornitura e posa in opera di tutti i materiali sopra descritti e quanto altro occorre per dare il lavoro finito. Sono esclusi: il materiale per la rasatura, le indagini pre e post intervento; tutti i sussidi necessari per l'esecuzione dei lavori ricadenti all'interno dei costi della sicurezza indiretti."]
[]
[]
[]
[]
[]
["DESCRIZIONE",null,null,"U.M.","QUANTITA'","PREZZO UNITARIO*","PREZZO COMPLETO"]
["RISORSE UMANE (RU) "]
["Applicazione di rete angolare preformata",null,null,null,null,null,null,null,"OPERAIO QUALIFICATO (MO1003)",null,null,{"$f":"INDEX(lavorazioni_secondostrato,(VLOOKUP($B$1,lavorazioni_secondostrato,2,FALSE)+1),3)","v":{"$error":"#NAME?"}}]
[{"$f":"IF(A13=0,\"\",$I$13)","v":"OPERAIO QUALIFICATO (MO1003)"},null,null,"H/cad",0.02,{"$f":"IFERROR(VLOOKUP(A14,PRZ,3,FALSE),\"\")","v":29.25},{"$f":"IFERROR(E14*F14,\"\")","v":0.58499999999999996},null,null,null,null,{"$f":"IF(L13=0,\"\",$I$13)","v":{"$error":"#NAME?"}},null,null,{"$f":"IFERROR(VLOOKUP(L14,prezzi,2,FALSE),\"\")","v":""},{"$f":"IF(L14=$I$13,VLOOKUP(L13,#REF!,2,FALSE),IF(L14=$I$14,VLOOKUP(L12,#REF!,2,FALSE),\"\"))","v":{"$error":"#NAME?"}},{"$f":"IFERROR(VLOOKUP(L14,prezzi,3,FALSE),\"\")","v":""},{"$f":"IFERROR(P14*Q14,\"\")","v":""}]
[null,null,null,{"$f":"IFERROR(VLOOKUP(A15,prezzi,2,FALSE),\"\")","v":""},{"$f":"IF(A15=$I$13,VLOOKUP(#REF!,QTA,2,FALSE),\"\")","v":""},"sommano RU",{"$f":"SUM(G14:G14)","v":0.58499999999999996},null,null,null,null,null,null,null,"",{"$f":"IF(L15=$I$13,VLOOKUP(#REF!,#REF!,2,FALSE),IF(L15=$I$14,VLOOKUP(#REF!,#REF!,2,FALSE),\"\"))","v":{"$error":"#REF!"}},"sommano RU",{"$f":"SUM(R14:R14)","v":0}]
["PRODOTTI DA COSTRUZIONE (PR) ",null,null,{"$f":"IFERROR(VLOOKUP(A16,prezzi,2,FALSE),\"\")","v":""}]
["Rete Angolare per Finestre",null,null,"cad",1,{"$f":"IFERROR(VLOOKUP(A17,PRZ,3,FALSE),\"\")","v":4.4539999999999997},{"$f":" IFERROR(F17*E17,\"\")","v":4.4539999999999997}]
[null,null,null,"",null,"sommano PR",{"$f":"SUM(G17:G17)","v":4.4539999999999997}]
["ATTREZZATURE (AT) "]
["NOLO DI STRUMENTAZIONE DA CANTIERE",null,null,"H/cad",0.01,8,{"$f":" F20*E20","v":0.08}]
["TRASPORTO MATERIALI DI CONSUMO",null,null,"kg/cad",0.01,{"$f":"0.02","v":0.02},{"$f":" F21*E21","v":2.0000000000000001E-4}]
[null,null,null,null,null,"sommano AT",{"$f":"SUM(G20:G21)","v":8.0200000000000007E-2}]
[null,null,null,null,null,"Costo Tecnico (CT)",{"$f":"SUM(G22,G18,G15)","v":5.1191999999999993}]
[null,null,null,null,null,"Costo indiretto (SG) 17,00%",{"$f":"G23*0.17","v":0.87026399999999993}]
[null,null,null,null,null,"Costo figurativo (U) 10,00%",{"$f":"(G23+G24)*0.1","v":0.59894639999999988}]
["* Prezzi materiali Kerakoll = Listino 07-2025. Prezzi manodopera = Prezziario DEI (I Semestre 2025) - Media Nazionale."]
[null,"RU+PR+AT+SG+U",null," PREZZO COMPLESSIVO CADAUNO",null,null,{"$f":"G23+G24+G25","v":6.588410399999999}]
[]
["Voce di capitolato "]
["Fornitura e posa in opera di rete preformata in fibra di vetro alcali resistente da inserire in corrispondenza degli angoli di porte, finestre e aperture per il rinforzo aggiuntivo alla rete d'armatura - tipo Rete Angolare per Finestre di Kerakoll.\nL'intervento si svolge nelle seguenti fasi: \na) Applicare il rasante (da contabilizzare a parte) e annegare la rete\nb) Procedere con le successive fasi di realizzazione del sistema termocoibente \nLa valutazione è espressa per singolo angolare effettivamente posto in opera."]

{"sheet":"Unità misura e prezzi","index":1,"n_rows":4,"n_cols":4,"rows_kept":4,"cut":false,"hidden":true,"merged":[]}
[]
[null,"Prodotto ","UM","Prezzo"]
[null,"OPERAIO QUALIFICATO (MO1003)","H/mq",29.25]
[null,"Rete angolare per finestre","cad",4.4539999999999997]